[Event "*** Titled Tuesday Blitz"]
[Site "Chess.com"]
[Date "2018.04.03"]
[Round "7"]
[White "FearNoEvil12"]
[Black "RichardABates"]
[Result "0-1"]
[WhiteElo "1992"]
[BlackElo "2170"]
[TimeControl "180+2"]
[EndTime "14:35:25 PDT"]
[Termination "RichardABates won by checkmate"]

1. e4 {[%clk 0:03:01.9]} 1... c5 {[%clk 0:03:00.2]} 2. Nc3 {[%clk 0:03:01.9]}
2... Nc6 {[%clk 0:03:00.2]} 3. f4 {[%clk 0:03:03.3]} 3... g6 {[%clk 0:03:00.3]}
4. Nf3 {[%clk 0:03:04.7]} 4... Bg7 {[%clk 0:03:01.3]} 5. Bc4 {[%clk 0:03:06.2]}
5... e6 {[%clk 0:03:01.2]} 6. f5 {[%clk 0:03:07.6]} 6... Nge7 {[%clk 0:03:01.6]}
7. fxg6 {[%clk 0:03:07.5]} 7... hxg6 {[%clk 0:03:00.1]} 8. d3 {[%clk 0:03:08.9]}
8... d5 {[%clk 0:02:59.3]} 9. Bb3 {[%clk 0:03:08.3]} 9... b5 {[%clk 0:02:54.5]}
10. O-O {[%clk 0:03:04.4]} 10... c4 {[%clk 0:02:54.5]} 11. dxc4 {[%clk
0:03:04.8]} 11... dxc4 {[%clk 0:02:53.5]} 12. Qxd8+ {[%clk 0:03:04.4]} 12...
Kxd8 {[%clk 0:02:41.3]} 13. Ng5 {[%clk 0:03:02.8]} 13... Ne5 {[%clk 0:02:30.7]}
14. Nxb5 {[%clk 0:03:00.4]} 14... cxb3 {[%clk 0:02:30.3]} 15. Rd1+ {[%clk
0:02:56.4]} 15... Bd7 {[%clk 0:02:27.7]} 16. axb3 {[%clk 0:02:56.3]} 16... N7c6
{[%clk 0:02:18]} 17. Bf4 {[%clk 0:02:38.4]} 17... Ke7 {[%clk 0:02:15.7]} 18. h3
{[%clk 0:02:25]} 18... f6 {[%clk 0:02:12.9]} 19. Nf3 {[%clk 0:02:19.7]} 19...
Nxf3+ {[%clk 0:02:07.2]} 20. gxf3 {[%clk 0:02:20.4]} 20... e5 {[%clk 0:02:08.1]}
21. Be3 {[%clk 0:02:17.8]} 21... Nd4 {[%clk 0:01:59.4]} 22. Nxd4 {[%clk
0:02:15.5]} 22... exd4 {[%clk 0:01:59.6]} 23. Bxd4 {[%clk 0:02:15.7]} 23... Bxh3
{[%clk 0:01:55.2]} 24. Rxa7+ {[%clk 0:02:06.6]} 24... Rxa7 {[%clk 0:01:54.4]}
25. Bxa7 {[%clk 0:02:08.1]} 25... Ra8 {[%clk 0:01:54.5]} 26. Bc5+ {[%clk
0:02:08.2]} 26... Kf7 {[%clk 0:01:55.4]} 27. b4 {[%clk 0:02:08]} 27... Be6
{[%clk 0:01:50.6]} 28. Kf2 {[%clk 0:02:07.2]} 28... f5 {[%clk 0:01:51.4]} 29.
exf5 {[%clk 0:02:06.5]} 29... Bxf5 {[%clk 0:01:47.1]} 30. c3 {[%clk 0:02:05.6]}
30... Ra2 {[%clk 0:01:43.6]} 31. Ke3 {[%clk 0:01:54.2]} 31... Rxb2 {[%clk
0:01:38.3]} 32. Bd4 {[%clk 0:01:54.3]} 32... Bh6+ {[%clk 0:01:37.7]} 33. f4
{[%clk 0:01:52.3]} 33... Rh2 {[%clk 0:01:35.2]} 34. Rf1 {[%clk 0:01:49.8]} 34...
Ke6 {[%clk 0:01:27.8]} 35. b5 {[%clk 0:01:49.4]} 35... g5 {[%clk 0:01:14.7]} 36.
fxg5 {[%clk 0:01:38.1]} 36... Bxg5+ {[%clk 0:01:15.7]} 37. Kf3 {[%clk
0:01:38.9]} 37... Rh3+ {[%clk 0:01:13]} 38. Kg2 {[%clk 0:01:37.8]} 38... Rd3
{[%clk 0:01:08.7]} 39. Re1+ {[%clk 0:01:31.6]} 39... Kd7 {[%clk 0:01:02]} 40.
Re5 {[%clk 0:01:31.7]} 40... Bh3+ {[%clk 0:01:02.6]} 41. Kf2 {[%clk 0:01:29.4]}
41... Bh4+ {[%clk 0:01:02.5]} 42. Ke2 {[%clk 0:01:27.8]} 42... Rg3 {[%clk
0:00:59.2]} 43. Re3 {[%clk 0:01:22.2]} 43... Bg4+ {[%clk 0:00:56]} 44. Kd3
{[%clk 0:01:20.5]} 44... Rg2 {[%clk 0:00:53.8]} 45. Kc4 {[%clk 0:01:04.3]} 45...
Be6+ {[%clk 0:00:51.7]} 46. Kc5 {[%clk 0:01:03.6]} 46... Be7+ {[%clk 0:00:48.7]}
47. Kb6 {[%clk 0:01:03.5]} 47... Bd8+ {[%clk 0:00:49.3]} 48. Kc5 {[%clk
0:00:56.7]} 48... Rg5+ {[%clk 0:00:45.7]} 49. Re5 {[%clk 0:00:52.3]} 49... Be7+
{[%clk 0:00:46.4]} 50. Kb6 {[%clk 0:00:50.5]} 50... Rg8 {[%clk 0:00:46]} 51. Ka7
{[%clk 0:00:18.1]} 51... Bd6 {[%clk 0:00:44.6]} 52. Rh5 {[%clk 0:00:16]} 52...
Bg4 {[%clk 0:00:36.5]} 53. Rh7+ {[%clk 0:00:13.6]} 53... Ke6 {[%clk 0:00:35.1]}
54. b6 {[%clk 0:00:13.8]} 54... Bb8+ {[%clk 0:00:29.7]} 55. Ka6 {[%clk
0:00:12.1]} 55... Be2+ {[%clk 0:00:28.2]} 56. Ka5 {[%clk 0:00:11.1]} 56... Bd3
{[%clk 0:00:21.8]} 57. Rh6+ {[%clk 0:00:10.6]} 57... Kd5 {[%clk 0:00:21.3]} 58.
b7 {[%clk 0:00:10.7]} 58... Rg2 {[%clk 0:00:18.3]} 59. Kb6 {[%clk 0:00:05.6]}
59... Rb2+ {[%clk 0:00:16.8]} 60. Ka5 {[%clk 0:00:06.4]} 60... Bc7+ {[%clk
0:00:16.7]} 61. Ka4 {[%clk 0:00:07.3]} 61... Rxb7 {[%clk 0:00:16.3]} 62. Rh5+
{[%clk 0:00:05.4]} 62... Ke4 {[%clk 0:00:14.1]} 63. Rh4+ {[%clk 0:00:04.9]}
63... Kf5 {[%clk 0:00:15]} 64. Rh5+ {[%clk 0:00:05.9]} 64... Kg4 {[%clk
0:00:15.9]} 65. Rc5 {[%clk 0:00:06.2]} 65... Bc2+ {[%clk 0:00:16.2]} 66. Ka3
{[%clk 0:00:05.4]} 66... Bd6 {[%clk 0:00:17.2]} 67. Ka2 {[%clk 0:00:05.8]} 67...
Bxc5 {[%clk 0:00:17.9]} 68. Bxc5 {[%clk 0:00:07.3]} 68... Kf3 {[%clk 0:00:19]}
69. Bb4 {[%clk 0:00:08.7]} 69... Ke2 {[%clk 0:00:19.6]} 70. Kb2 {[%clk
0:00:10.2]} 70... Kd3 {[%clk 0:00:20.7]} 71. Ka3 {[%clk 0:00:10.7]} 71... Kc4
{[%clk 0:00:20.2]} 72. Kb2 {[%clk 0:00:12]} 72... Bb3 {[%clk 0:00:21.4]} 73. Kb1
{[%clk 0:00:10.8]} 73... Rg7 {[%clk 0:00:22.2]} 74. Kb2 {[%clk 0:00:11.3]} 74...
Rg2+ {[%clk 0:00:23.7]} 75. Kb1 {[%clk 0:00:12.4]} 75... Ba4 {[%clk 0:00:24.3]}
76. Kc1 {[%clk 0:00:12.6]} 76... Bc2 {[%clk 0:00:23.4]} 77. Kb2 {[%clk
0:00:12.8]} 77... Bd1+ {[%clk 0:00:24.4]} 78. Kc1 {[%clk 0:00:13.2]} 78... Bf3
{[%clk 0:00:24.8]} 79. Kb1 {[%clk 0:00:13.2]} 79... Kb3 {[%clk 0:00:25.8]} 80.
Kc1 {[%clk 0:00:14.5]} 80... Rc2+ {[%clk 0:00:23.2]} 81. Kb1 {[%clk 0:00:15.1]}
81... Rd2 {[%clk 0:00:23]} 82. Ba3 {[%clk 0:00:12.5]} 82... Rd1+ {[%clk
0:00:22.9]} 83. Bc1 {[%clk 0:00:12.3]} 83... Be4+ {[%clk 0:00:23.6]} 84. Ka1
{[%clk 0:00:12.7]} 84... Rxc1# {[%clk 0:00:24.7]} 0-1

[Event "*** Titled Tuesday Blitz"]
[Site "Chess.com"]
[Date "2018.04.03"]
[Round "7"]
[White "djano"]
[Black "ahmadzada13"]
[Result "1/2-1/2"]
[WhiteElo "2439"]
[BlackElo "2596"]
[TimeControl "180+2"]
[EndTime "14:35:34 PDT"]
[Termination "Game drawn - insufficient material"]

1. d4 {[%clk 0:03:01.9]} 1... Nf6 {[%clk 0:03:00.4]} 2. Nc3 {[%clk 0:03:01.9]}
2... d5 {[%clk 0:03:00.4]} 3. Bf4 {[%clk 0:03:00.3]} 3... Bf5 {[%clk 0:02:59.6]}
4. f3 {[%clk 0:03:00.8]} 4... e6 {[%clk 0:02:55.1]} 5. g4 {[%clk 0:03:01.8]}
5... Bg6 {[%clk 0:02:53.7]} 6. h4 {[%clk 0:03:02.9]} 6... h6 {[%clk 0:02:54.2]}
7. h5 {[%clk 0:03:03.8]} 7... Bh7 {[%clk 0:02:55.2]} 8. e3 {[%clk 0:03:05.2]}
8... c5 {[%clk 0:02:55.4]} 9. Nb5 {[%clk 0:03:04.6]} 9... Na6 {[%clk 0:02:55.2]}
10. c3 {[%clk 0:03:05.9]} 10... Be7 {[%clk 0:02:49.3]} 11. Bd3 {[%clk
0:03:01.6]} 11... Bxd3 {[%clk 0:02:39.2]} 12. Qxd3 {[%clk 0:03:03.5]} 12... Qb6
{[%clk 0:02:36.2]} 13. a4 {[%clk 0:03:03.5]} 13... c4 {[%clk 0:02:34.4]} 14. Qc2
{[%clk 0:03:00.6]} 14... O-O-O {[%clk 0:02:13.3]} 15. Ne2 {[%clk 0:02:58]} 15...
Ne8 {[%clk 0:02:14.2]} 16. b3 {[%clk 0:02:53.1]} 16... cxb3 {[%clk 0:02:10.4]}
17. Qxb3 {[%clk 0:02:55]} 17... Nd6 {[%clk 0:02:08.4]} 18. O-O {[%clk
0:02:48.1]} 18... Nc7 {[%clk 0:02:01.5]} 19. Rfb1 {[%clk 0:02:39.8]} 19... Ncxb5
{[%clk 0:02:01.1]} 20. axb5 {[%clk 0:02:41.7]} 20... Nc4 {[%clk 0:02:02.4]} 21.
Qa4 {[%clk 0:02:35.1]} 21... Nd2 {[%clk 0:02:01.4]} 22. Rb2 {[%clk 0:02:25.5]}
22... Nxf3+ {[%clk 0:02:01]} 23. Kg2 {[%clk 0:02:17.2]} 23... Ng5 {[%clk
0:02:00.9]} 24. Qxa7 {[%clk 0:02:12.1]} 24... Qxa7 {[%clk 0:02:00.2]} 25. Rxa7
{[%clk 0:02:14]} 25... Ne4 {[%clk 0:02:00.5]} 26. c4 {[%clk 0:02:02.3]} 26...
dxc4 {[%clk 0:01:59.5]} 27. Rc2 {[%clk 0:02:03.8]} 27... Bd6 {[%clk 0:01:54.6]}
28. Rxc4+ {[%clk 0:02:00.3]} 28... Kb8 {[%clk 0:01:55.1]} 29. b6 {[%clk
0:01:51.6]} 29... Bxf4 {[%clk 0:01:55.8]} 30. Nxf4 {[%clk 0:01:36.4]} 30... Nd6
{[%clk 0:01:49.3]} 31. Rca4 {[%clk 0:01:11.4]} 31... Kc8 {[%clk 0:01:48.1]} 32.
Nd3 {[%clk 0:01:09.9]} 32... Kd7 {[%clk 0:01:42.9]} 33. Ne5+ {[%clk 0:01:10.8]}
33... Ke7 {[%clk 0:01:41.1]} 34. Nc6+ {[%clk 0:01:11.4]} 34... Kf6 {[%clk
0:01:36.5]} 35. Nxd8 {[%clk 0:01:11.3]} 35... Rxd8 {[%clk 0:01:37.7]} 36. Ra8
{[%clk 0:01:11.5]} 36... Rxa8 {[%clk 0:01:34]} 37. Rxa8 {[%clk 0:01:13.4]} 37...
Nc4 {[%clk 0:01:35.6]} 38. Rb8 {[%clk 0:01:02.2]} 38... Nxb6 {[%clk 0:01:35.6]}
39. Rxb7 {[%clk 0:01:03.4]} 39... Nc4 {[%clk 0:01:36.8]} 40. e4 {[%clk
0:00:57.1]} 40... e5 {[%clk 0:01:27.3]} 41. d5 {[%clk 0:00:47.3]} 41... Nd6
{[%clk 0:01:27.9]} 42. Rb6 {[%clk 0:00:44.8]} 42... Ke7 {[%clk 0:01:29.1]} 43.
Kf3 {[%clk 0:00:44.6]} 43... Kd7 {[%clk 0:01:28.8]} 44. Ra6 {[%clk 0:00:42.6]}
44... Ke7 {[%clk 0:01:26.6]} 45. Ra7+ {[%clk 0:00:42.5]} 45... Kf6 {[%clk
0:01:23]} 46. Rd7 {[%clk 0:00:43.9]} 46... Nc4 {[%clk 0:01:22.8]} 47. d6 {[%clk
0:00:34.6]} 47... Ke6 {[%clk 0:01:17.9]} 48. Re7+ {[%clk 0:00:35.5]} 48... Kf6
{[%clk 0:01:18.4]} 49. Rd7 {[%clk 0:00:30.5]} 49... Ke6 {[%clk 0:01:18.6]} 50.
Rd8 {[%clk 0:00:30]} 50... Nxd6 {[%clk 0:01:19.3]} 51. Ra8 {[%clk 0:00:27]}
51... Nb5 {[%clk 0:01:19.3]} 52. Ra6+ {[%clk 0:00:26.3]} 52... Ke7 {[%clk
0:01:19.1]} 53. Ke3 {[%clk 0:00:23.1]} 53... Nd4 {[%clk 0:01:19.7]} 54. Ra7+
{[%clk 0:00:22]} 54... Kf6 {[%clk 0:01:19.9]} 55. Ra6+ {[%clk 0:00:21.5]} 55...
Kg5 {[%clk 0:01:19.9]} 56. Ra7 {[%clk 0:00:21.8]} 56... Kf6 {[%clk 0:01:17.4]}
57. Ra6+ {[%clk 0:00:22.6]} 57... Ne6 {[%clk 0:01:13.3]} 58. Kf3 {[%clk
0:00:21.3]} 58... Kg5 {[%clk 0:01:13.7]} 59. Kg3 {[%clk 0:00:21]} 59... Nc5
{[%clk 0:01:10.9]} 60. Ra5 {[%clk 0:00:12.2]} 60... Nxe4+ {[%clk 0:01:08.2]} 61.
Kf3 {[%clk 0:00:13.3]} 61... Nd2+ {[%clk 0:01:04.5]} 62. Ke2 {[%clk 0:00:14]}
62... Nc4 {[%clk 0:01:04]} 63. Rc5 {[%clk 0:00:15.1]} 63... Nd6 {[%clk
0:01:03.3]} 64. Rxe5+ {[%clk 0:00:15.7]} 64... Kxg4 {[%clk 0:01:04.4]} 65. Kd3
{[%clk 0:00:13.8]} 65... Nf5 {[%clk 0:01:02.4]} 66. Ra5 {[%clk 0:00:10.1]} 66...
f6 {[%clk 0:00:52.8]} 67. Ke4 {[%clk 0:00:08]} 67... Ng3+ {[%clk 0:00:53.6]} 68.
Kd5 {[%clk 0:00:08.6]} 68... Nxh5 {[%clk 0:00:54.3]} 69. Ke6 {[%clk 0:00:10]}
69... f5 {[%clk 0:00:38.3]} 70. Rxf5 {[%clk 0:00:10.6]} 70... Nf4+ {[%clk
0:00:38.2]} 71. Ke5 {[%clk 0:00:12]} 71... Ng6+ {[%clk 0:00:36.9]} 72. Ke4
{[%clk 0:00:11.8]} 72... h5 {[%clk 0:00:36.1]} 73. Rf7 {[%clk 0:00:12.6]} 73...
Kg5 {[%clk 0:00:36.2]} 74. Rxg7 {[%clk 0:00:13.6]} 74... Kf6 {[%clk 0:00:37.4]}
75. Rh7 {[%clk 0:00:13.8]} 75... h4 {[%clk 0:00:37.9]} 76. Kf3 {[%clk
0:00:13.6]} 76... Kg5 {[%clk 0:00:38.4]} 77. Kg2 {[%clk 0:00:10.1]} 77... Kg4
{[%clk 0:00:38.4]} 78. Rh6 {[%clk 0:00:10]} 78... Nf4+ {[%clk 0:00:38.7]} 79.
Kh2 {[%clk 0:00:10.9]} 79... Kg5 {[%clk 0:00:39.3]} 80. Rh7 {[%clk 0:00:10]}
80... Ng6 {[%clk 0:00:37.9]} 81. Ra7 {[%clk 0:00:10.1]} 81... Kg4 {[%clk
0:00:35.2]} 82. Ra4+ {[%clk 0:00:11]} 82... Kg5 {[%clk 0:00:36.2]} 83. Ra5+
{[%clk 0:00:11.5]} 83... Kg4 {[%clk 0:00:36.1]} 84. Ra4+ {[%clk 0:00:12.7]}
84... Kg5 {[%clk 0:00:36.7]} 85. Rxh4 {[%clk 0:00:13.1]} 85... Kxh4 {[%clk
0:00:35]} 1/2-1/2

[Event "*** Titled Tuesday Blitz"]
[Site "Chess.com"]
[Date "2018.04.03"]
[Round "7"]
[White "murmah2003"]
[Black "335394862"]
[Result "1-0"]
[WhiteElo "2450"]
[BlackElo "2307"]
[TimeControl "180+2"]
[EndTime "14:35:39 PDT"]
[Termination "murmah2003 won by checkmate"]

1. d4 {[%clk 0:03:00.4]} 1... Nf6 {[%clk 0:03:00.4]} 2. c4 {[%clk 0:02:59.6]}
2... e6 {[%clk 0:03:01.6]} 3. Nf3 {[%clk 0:02:59.6]} 3... b6 {[%clk 0:02:59.8]}
4. g3 {[%clk 0:03:00.2]} 4... Ba6 {[%clk 0:03:01]} 5. b3 {[%clk 0:03:00.7]} 5...
Bb4+ {[%clk 0:03:02.1]} 6. Bd2 {[%clk 0:03:01.4]} 6... Be7 {[%clk 0:03:02.6]} 7.
Bc3 {[%clk 0:03:02.8]} 7... O-O {[%clk 0:02:57.3]} 8. Nbd2 {[%clk 0:03:02.6]}
8... Bb7 {[%clk 0:02:58.2]} 9. Bg2 {[%clk 0:02:52.6]} 9... c5 {[%clk 0:02:52.2]}
10. O-O {[%clk 0:02:32.6]} 10... cxd4 {[%clk 0:02:51.1]} 11. Bxd4 {[%clk
0:02:31.1]} 11... Nc6 {[%clk 0:02:48.7]} 12. Bb2 {[%clk 0:02:30.6]} 12... d6
{[%clk 0:02:48.7]} 13. e3 {[%clk 0:02:23]} 13... Qc7 {[%clk 0:02:44.7]} 14. Qe2
{[%clk 0:02:20.6]} 14... Rad8 {[%clk 0:02:35.4]} 15. Rac1 {[%clk 0:02:18.2]}
15... Qb8 {[%clk 0:02:34.7]} 16. Rfd1 {[%clk 0:02:16.7]} 16... Rd7 {[%clk
0:02:31.9]} 17. e4 {[%clk 0:01:54.2]} 17... Rfd8 {[%clk 0:02:16.8]} 18. Nd4
{[%clk 0:01:52.9]} 18... Nxd4 {[%clk 0:02:14.5]} 19. Bxd4 {[%clk 0:01:54.8]}
19... Ne8 {[%clk 0:02:13.2]} 20. Nb1 {[%clk 0:01:32.5]} 20... Bf6 {[%clk
0:02:03.1]} 21. Nc3 {[%clk 0:01:32.7]} 21... Bxd4 {[%clk 0:02:01.1]} 22. Rxd4
{[%clk 0:01:34.6]} 22... a6 {[%clk 0:02:01]} 23. Rcd1 {[%clk 0:01:29]} 23... Bc6
{[%clk 0:01:59.2]} 24. a4 {[%clk 0:01:15.6]} 24... Qb7 {[%clk 0:01:48.9]} 25. f4
{[%clk 0:00:56.3]} 25... Qc7 {[%clk 0:01:47.3]} 26. Qe3 {[%clk 0:00:51.7]} 26...
Nf6 {[%clk 0:01:45.3]} 27. Bf3 {[%clk 0:00:52.9]} 27... e5 {[%clk 0:01:40.1]}
28. R4d2 {[%clk 0:00:50.7]} 28... Ba8 {[%clk 0:01:39.5]} 29. f5 {[%clk
0:00:45.9]} 29... Qc5 {[%clk 0:01:35.3]} 30. Kf2 {[%clk 0:00:47]} 30... Kf8
{[%clk 0:01:31.1]} 31. g4 {[%clk 0:00:43.7]} 31... h6 {[%clk 0:01:31.4]} 32. h4
{[%clk 0:00:43]} 32... g5 {[%clk 0:01:21]} 33. Ke2 {[%clk 0:00:18.3]} 33... Nh7
{[%clk 0:00:57.8]} 34. Rh1 {[%clk 0:00:10.9]} 34... Kg7 {[%clk 0:00:53.7]} 35.
Rh2 {[%clk 0:00:06.9]} 35... gxh4 {[%clk 0:00:36.4]} 36. Rxh4 {[%clk 0:00:07.1]}
36... Ng5 {[%clk 0:00:35.7]} 37. Rd1 {[%clk 0:00:08.5]} 37... Qxe3+ {[%clk
0:00:31.4]} 38. Kxe3 {[%clk 0:00:08.6]} 38... f6 {[%clk 0:00:33.3]} 39. Rdh1
{[%clk 0:00:08.7]} 39... Nf7 {[%clk 0:00:33.7]} 40. R4h2 {[%clk 0:00:09.4]}
40... Rc8 {[%clk 0:00:33.9]} 41. Rd1 {[%clk 0:00:10]} 41... Rdc7 {[%clk
0:00:33.9]} 42. Rhd2 {[%clk 0:00:10.4]} 42... Ra7 {[%clk 0:00:34.3]} 43. Be2
{[%clk 0:00:11.1]} 43... Rac7 {[%clk 0:00:35.1]} 44. Ra2 {[%clk 0:00:10.1]}
44... Re7 {[%clk 0:00:33.7]} 45. Rb2 {[%clk 0:00:11.2]} 45... Rec7 {[%clk
0:00:30.3]} 46. Na2 {[%clk 0:00:12.2]} 46... Kf8 {[%clk 0:00:21.4]} 47. Nb4
{[%clk 0:00:12.4]} 47... Bb7 {[%clk 0:00:22.9]} 48. Ra2 {[%clk 0:00:11.8]} 48...
Ke7 {[%clk 0:00:19.7]} 49. a5 {[%clk 0:00:12.1]} 49... b5 {[%clk 0:00:05.6]} 50.
cxb5 {[%clk 0:00:12]} 50... Rc3+ {[%clk 0:00:06.8]} 51. Rd3 {[%clk 0:00:12.1]}
51... axb5 {[%clk 0:00:04.9]} 52. a6 {[%clk 0:00:13.4]} 52... Ba8 {[%clk
0:00:04.9]} 53. Kd2 {[%clk 0:00:14]} 53... Rxd3+ {[%clk 0:00:04.1]} 54. Bxd3
{[%clk 0:00:15.9]} 54... Ng5 {[%clk 0:00:04.9]} 55. Nd5+ {[%clk 0:00:11.9]}
55... Bxd5 {[%clk 0:00:04.8]} 56. exd5 {[%clk 0:00:13.8]} 56... Ra8 {[%clk
0:00:03.2]} 57. Bxb5 {[%clk 0:00:14.7]} 57... Ra7 {[%clk 0:00:04.6]} 58. Bc6
{[%clk 0:00:15.4]} 58... Kd8 {[%clk 0:00:05.8]} 59. b4 {[%clk 0:00:14.5]} 59...
Kc7 {[%clk 0:00:07.7]} 60. b5 {[%clk 0:00:15.9]} 60... Kb6 {[%clk 0:00:09]} 61.
Ke3 {[%clk 0:00:17.4]} 61... h5 {[%clk 0:00:08.2]} 62. gxh5 {[%clk 0:00:17.6]}
62... Rh7 {[%clk 0:00:09.4]} 63. a7 {[%clk 0:00:12.7]} 63... Rxa7 {[%clk
0:00:09.6]} 64. Rxa7 {[%clk 0:00:14.2]} 64... Kxa7 {[%clk 0:00:11.5]} 65. h6
{[%clk 0:00:14.9]} 65... Nf7 {[%clk 0:00:08.6]} 66. h7 {[%clk 0:00:14.8]} 66...
Kb6 {[%clk 0:00:08.6]} 67. Be8 {[%clk 0:00:14.9]} 67... Nh8 {[%clk 0:00:10.1]}
68. Kd3 {[%clk 0:00:15.9]} 68... Kc5 {[%clk 0:00:07.8]} 69. Bc6 {[%clk
0:00:17.2]} 69... Nf7 {[%clk 0:00:03.5]} 70. Be8 {[%clk 0:00:18.1]} 70... Nh8
{[%clk 0:00:05.4]} 71. Ke3 {[%clk 0:00:15]} 71... Kb6 {[%clk 0:00:04.8]} 72. Kf3
{[%clk 0:00:16.3]} 72... Kc5 {[%clk 0:00:05.6]} 73. Kg4 {[%clk 0:00:17.6]} 73...
Kb6 {[%clk 0:00:06.5]} 74. Kh5 {[%clk 0:00:18.9]} 74... e4 {[%clk 0:00:07.9]}
75. Kg4 {[%clk 0:00:19.9]} 75... Kc5 {[%clk 0:00:08.1]} 76. Kg3 {[%clk
0:00:19.7]} 76... Kb6 {[%clk 0:00:03.2]} 77. Kf2 {[%clk 0:00:20.7]} 77... Kc5
{[%clk 0:00:04.3]} 78. Ke3 {[%clk 0:00:21.9]} 78... Kxd5 {[%clk 0:00:05.7]} 79.
b6 {[%clk 0:00:22.1]} 79... Ke5 {[%clk 0:00:06.6]} 80. b7 {[%clk 0:00:23]} 80...
d5 {[%clk 0:00:08.5]} 81. b8=Q+ {[%clk 0:00:24.5]} 81... Kxf5 {[%clk 0:00:10.4]}
82. Qf4+ {[%clk 0:00:24.8]} 82... Ke6 {[%clk 0:00:11.9]} 83. Kd4 {[%clk
0:00:26.3]} 83... Nf7 {[%clk 0:00:10.4]} 84. Bxf7+ {[%clk 0:00:26.4]} 84... Kxf7
{[%clk 0:00:12]} 85. h8=Q {[%clk 0:00:27.8]} 85... Ke6 {[%clk 0:00:12.6]} 86.
Qfxf6+ {[%clk 0:00:28.7]} 86... Kd7 {[%clk 0:00:14.5]} 87. Qhd8# {[%clk
0:00:29.9]} 1-0